fUSD/lending_fUSD_20240803
["ID","MTS","AMOUNT","RATE_DAILY","PERIOD"]
[334011705,1722679835322,-813.6,0.00016438,2]
[334011706,1722679835331,-695.59,0.00016438,2]
[334011707,1722679835341,-500.0,0.00016438,2]
[334011708,1722679835350,-500.0,0.00016438,2]
[334011709,1722679835360,-500.0,0.00016438,2]
[334011710,1722679835369,-190.84401887,0.00016438,2]
[334011711,1722679835379,-1465.19,0.00016438,2]
[334011712,1722679835389,-500.0,0.00016438,2]
[334011713,1722679835398,-500.0,0.00016438,2]
[334011714,1722679835408,-946.14,0.00016438,2]
[334011715,1722679835418,-500.0,0.00016438,2]
[334011716,1722679835427,-412.94197227,0.00016438,2]
[334011717,1722679835436,-500.0,0.00016438,2]
[334011718,1722679835446,-500.0,0.00016438,2]
[334011719,1722679835456,-500.0,0.00016438,2]
[334011720,1722679835465,-500.0,0.00016438,2]
[334011721,1722679835476,-600.86,0.00016438,2]
[334011722,1722679835485,-500.0,0.00016438,2]
[334011723,1722679835495,-500.0,0.00016438,2]
[334011724,1722679835504,-500.0,0.00016438,2]
[334011725,1722679835514,-578.27,0.00016438,2]
[334011726,1722679835525,-500.0,0.00016438,2]
[334011727,1722679835535,-500.0,0.00016438,2]
[334011728,1722679835545,-839.29,0.00016438,2]
[334011729,1722679835555,-979.53,0.00016438,2]
[334011730,1722679835564,-1182.76,0.00016438,2]
[334011731,1722679835573,-500.0,0.00016438,2]
[334011732,1722679835583,-1041.82,0.00016438,2]
[334011733,1722679835593,-500.0,0.00016438,2]
[334011734,1722679835602,-500.0,0.00016438,2]
[334011735,1722679835611,-500.0,0.00016438,2]
[334011736,1722679835621,-587.18,0.00016438,2]
[334011737,1722679835631,-505.01,0.00016438,2]
[334011738,1722679835640,-548.04,0.00016438,2]
[334011739,1722679835649,-538.24,0.00016438,2]
[334011740,1722679835659,-2230.61,0.00016438,2]
[334011741,1722679835668,-500.0,0.00016438,2]
[334011742,1722679835677,-500.0,0.00016438,2]
[334011743,1722679835687,-500.0,0.00016438,2]
[334011744,1722679835696,-965.02,0.00016438,2]
[334011745,1722679835705,-500.0,0.00016438,2]
[334011746,1722679835715,-500.0,0.00016438,2]
[334011747,1722679835725,-1406.26,0.00016438,2]
[334011748,1722679835735,-932.3,0.00016438,2]
[334011749,1722679835745,-500.0,0.00016438,2]
[334011750,1722679835754,-500.0,0.00016438,2]
[334011751,1722679835763,-500.0,0.00016438,2]
[334011752,1722679835773,-996.2,0.00016438,2]
[334011753,1722679835783,-1149.12,0.00016438,2]
[334011754,1722679835792,-500.0,0.00016438,2]
[334011755,1722679835802,-556.75,0.00016438,2]
[334011756,1722679835811,-500.0,0.00016438,2]
[334011757,1722679835825,-500.0,0.00016438,2]
[334011758,1722679835835,-500.0,0.00016438,2]
[334011759,1722679835845,-500.0,0.00016438,2]
[334011760,1722679835854,-682.35,0.00016438,2]
[334011761,1722679835865,-1039.26,0.00016438,2]
[334011762,1722679835875,-500.0,0.00016438,2]
[334011763,1722679835884,-463.81298503,0.00016438,2]
[334011764,1722679835895,-500.0,0.00016438,2]
[334011765,1722679835906,-500.0,0.00016438,2]
[334011766,1722679835915,-432.64787291,0.00016438,2]
[334011767,1722679835924,-670.1,0.00016438,2]
[334011768,1722679835934,-500.0,0.00016438,2]
[334011769,1722679835944,-1099.2,0.00016438,2]
[334011770,1722679835953,-500.0,0.00016438,2]
[334011771,1722679835963,-1762.59,0.00016438,2]
[334011772,1722679835972,-500.0,0.00016438,2]
[334011773,1722679835982,-1538.41,0.00016438,2]
[334011774,1722679835992,-508.97,0.00016438,2]
[334011775,1722679836001,-500.0,0.00016438,2]
[334011776,1722679836010,-524.29,0.00016438,2]
[334011777,1722679836020,-221.80768468,0.00016438,2]
[334011778,1722679836030,-500.0,0.00016438,2]
[334011779,1722679836039,-509.71,0.00016438,2]
[334011780,1722679836049,-500.0,0.00016438,2]
[334011781,1722679836058,-500.0,0.00016438,2]
[334011782,1722679836067,-2869.52,0.00016438,2]
[334011783,1722679836077,-500.0,0.00016438,2]
[334011784,1722679836086,-962.43,0.00016438,2]
[334011785,1722679836096,-401.90598699,0.00016438,2]
[334011786,1722679836105,-500.0,0.00016438,2]
[334011787,1722679836114,-845.82,0.00016438,2]
[334011788,1722679836124,-500.0,0.00016438,2]
[334011789,1722679836133,-799.98,0.00016438,2]
[334011790,1722679836143,-500.0,0.00016438,2]
[334011791,1722679836152,-500.0,0.00016438,2]
[334011792,1722679836161,-990.59,0.00016438,2]
[334011793,1722679836171,-500.0,0.00016438,2]
[334011794,1722679836180,-500.0,0.00016438,2]
[334011795,1722679836190,-946.75,0.00016438,2]
[334011796,1722679836199,-722.18,0.00016438,2]
[334011797,1722679836209,-3094.92,0.00016438,2]
[334011798,1722679836218,-1648.87,0.00016438,2]
[334011799,1722679836228,-500.0,0.00016438,2]
[334011800,1722679836238,-500.0,0.00016438,2]
[334011801,1722679836247,-546.6,0.00016438,2]
[334011802,1722679836257,-649.4,0.00016438,2]
[334011803,1722679836267,-756.12,0.00016438,2]
[334011804,1722679836277,-549.28,0.00016438,2]
[334011805,1722679836287,-4776.75,0.00016438,2]
[334011806,1722679836296,-500.0,0.00016438,2]
[334011807,1722679836306,-1739.26,0.00016438,2]
[334011808,1722679836315,-633.04,0.00016438,2]
[334011809,1722679836324,-500.0,0.00016438,2]
[334011810,1722679836334,-894.83,0.00016438,2]
[334011811,1722679836343,-500.0,0.00016438,2]
[334011812,1722679836352,-679.21,0.00016438,2]
[334011813,1722679836362,-500.0,0.00016438,2]
[334011814,1722679836371,-1863.79,0.00016438,2]
[334011815,1722679836381,-5258.6,0.00016438,2]
[334011816,1722679836390,-1520.3,0.00016438,2]
[334011817,1722679836399,-2610.29,0.00016438,2]
[334011818,1722679836410,-794.69,0.00016438,2]
[334011819,1722679836419,-500.0,0.00016438,2]
[334011820,1722679836429,-546.3146021,0.00016441,2]
[334011821,1722679836438,-834.45,0.00016502,2]
[334011822,1722679836449,-834.45,0.00016502,2]
[334011823,1722679836458,-1041.22,0.00016502,2]
[334011824,1722679836467,-150.75147728,0.00016612,2]
[334011825,1722679836476,-428.22,0.00016711,2]
[334011826,1722679836486,-2226.11,0.00016711,2]
[334011827,1722679836496,-1228.92,0.00016711,2]
[334011828,1722679836505,-500.0,0.00016711,2]
[334011829,1722679836514,-500.0,0.00016711,2]
[334011830,1722679836525,-1487.36,0.00016711,2]
[334011831,1722679836534,-586.29,0.00016711,2]
[334011832,1722679836544,-509.23,0.00016711,2]
[334011833,1722679836553,-1514.24,0.00016711,2]
[334011834,1722679836563,-547.25,0.00016711,2]
[334011835,1722679836572,-500.0,0.00016711,2]
[334011836,1722679836582,-500.0,0.00016711,2]
[334011837,1722679836592,-632.81,0.00016711,2]
[334011838,1722679836601,-1002.48,0.00016711,2]
[334011839,1722679836611,-500.0,0.00016711,2]
[334011840,1722679836620,-500.0,0.00016711,2]
[334011841,1722679836630,-690.99,0.00016711,2]
[334011842,1722679836640,-1486.0,0.00016711,2]
[334011843,1722679836649,-757.77,0.00016711,2]
[334011844,1722679836659,-1053.29,0.00016711,2]
[334011845,1722679836668,-500.0,0.00016711,2]
[334011846,1722679836678,-500.0,0.00016711,2]
[334011847,1722679836687,-2310.93,0.00016711,2]
[334011848,1722679836698,-500.0,0.00016712,2]
[334011849,1722679836708,-500.0,0.00016712,2]
[334011850,1722679836717,-500.0,0.00016712,2]
[334011851,1722679836727,-500.0,0.00016712,2]
[334011852,1722679836737,-500.0,0.00016712,2]
[334011853,1722679836746,-500.0,0.00016712,2]
[334011854,1722679836756,-622.65,0.00016712,2]
[334011855,1722679836766,-500.0,0.00016712,2]
[334011856,1722679836776,-500.0,0.00016712,2]
[334011857,1722679836785,-500.0,0.00016712,2]
[334011858,1722679836795,-500.0,0.00016712,2]
[334011859,1722679836804,-500.0,0.00016712,2]
[334011860,1722679836816,-500.0,0.00016712,2]
[334011861,1722679836826,-500.0,0.00016712,2]
[334011862,1722679836835,-500.0,0.00016712,2]
[334011863,1722679836845,-500.0,0.00016712,2]
[334011864,1722679836855,-500.0,0.00016712,2]
[334011865,1722679836864,-500.0,0.00016712,2]
[334011866,1722679836874,-500.0,0.00016712,2]
[334011867,1722679836884,-500.0,0.00016712,2]
[334011868,1722679836895,-500.0,0.00016712,2]
[334011869,1722679836904,-500.0,0.00016712,2]
[334011870,1722679836913,-158.96900857,0.00016712,2]
[334011871,1722679836924,-500.0,0.00016712,2]
[334011872,1722679836934,-500.0,0.00016712,2]
[334011873,1722679836944,-500.0,0.00016712,2]
[334011874,1722679836954,-500.0,0.00016712,2]
[334011875,1722679836967,-500.0,0.00016712,2]
[334011876,1722679836976,-500.0,0.00016712,2]
[334011877,1722679836986,-500.0,0.00016712,2]
[334011878,1722679836996,-500.0,0.00016712,2]
[334011879,1722679837005,-500.0,0.00016712,2]
[334011880,1722679837015,-500.0,0.00016712,2]
[334011881,1722679837026,-500.0,0.00016712,2]
[334011882,1722679837042,-1038.92,0.00016712,2]
[334011883,1722679837051,-500.0,0.00016712,2]
[334011884,1722679837061,-500.0,0.00016712,2]
[334011885,1722679837071,-500.0,0.00016712,2]
[334011886,1722679837080,-500.0,0.00016712,2]
[334011887,1722679837090,-500.0,0.00016712,2]
[334011888,1722679837100,-500.0,0.00016712,2]
[334011889,1722679837110,-500.0,0.00016712,2]
[334011890,1722679837119,-500.0,0.00016712,2]
[334011891,1722679837129,-500.0,0.00016712,2]
[334011892,1722679837139,-500.0,0.00016712,2]
[334011893,1722679837148,-500.0,0.00016712,2]
[334011894,1722679837158,-551.64,0.00016712,2]
[334011895,1722679837167,-500.0,0.00016712,2]
[334011896,1722679837177,-500.0,0.00016712,2]
[334011897,1722679837187,-500.0,0.00016712,2]
[334011898,1722679837197,-500.0,0.00016712,2]
[334011899,1722679837207,-500.0,0.00016712,2]
[334011900,1722679837216,-500.0,0.00016712,2]
[334011901,1722679837227,-500.0,0.00016712,2]
[334011902,1722679837236,-500.0,0.00016712,2]
[334011903,1722679837246,-1131.87,0.00016712,2]
[334011904,1722679837255,-500.0,0.00016712,2]
[334011905,1722679837265,-500.0,0.00016712,2]
[334011907,1722679837534,-500.0,0.00016712,2]
[334011908,1722679837557,-500.0,0.00016712,2]
[334011910,1722679837567,-500.0,0.00016712,2]
[334011911,1722679837577,-500.0,0.00016712,2]
[334011912,1722679837587,-500.0,0.00016712,2]
[334011913,1722679837597,-780.23,0.00016712,2]
[334011914,1722679837607,-500.0,0.00016712,2]
[334011915,1722679837616,-580.49,0.00016712,2]
[334011916,1722679837626,-500.0,0.00016712,2]
[334011917,1722679837636,-500.0,0.00016712,2]
[334011918,1722679837647,-500.0,0.00016712,2]
[334011919,1722679837657,-500.0,0.00016712,2]
[334011920,1722679837669,-500.0,0.00016712,2]
[334011921,1722679837679,-251.4214323,0.00016712,2]
[334011922,1722679837688,-192.93744023,0.00016712,2]
[334011923,1722679837698,-500.0,0.00016712,2]
[334011924,1722679837709,-500.0,0.00016712,2]
[334011925,1722679837718,-500.0,0.00016712,2]
[334011927,1722679837731,-500.0,0.00016712,2]
[334011929,1722679837740,-500.0,0.00016712,2]
[334011931,1722679837750,-500.0,0.00016712,2]
[334011933,1722679837760,-500.0,0.00016712,2]
[334011934,1722679837771,-500.0,0.00016712,2]
[334011935,1722679837781,-500.0,0.00016712,2]
[334011936,1722679837791,-500.0,0.00016712,2]
[334011937,1722679837801,-500.0,0.00016712,2]
[334011938,1722679837811,-500.0,0.00016712,2]
[334011939,1722679837826,-500.0,0.00016712,2]
[334011940,1722679837836,-500.0,0.00016712,2]
[334011941,1722679837846,-724.65,0.00016712,2]
[334011942,1722679837856,-500.0,0.00016712,2]
[334011943,1722679837867,-500.0,0.00016712,2]
[334011944,1722679837877,-500.0,0.00016712,2]
[334011945,1722679837887,-500.0,0.00016712,2]
[334011946,1722679837899,-500.0,0.00016712,2]
[334011947,1722679837909,-500.0,0.00016712,2]
[334011948,1722679837918,-500.0,0.00016712,2]
[334011949,1722679837928,-500.0,0.00016712,2]
[334011950,1722679837938,-500.0,0.00016712,2]
[334011951,1722679837947,-500.0,0.00016712,2]
[334011952,1722679837957,-500.0,0.00016712,2]
[334011953,1722679837966,-500.0,0.00016712,2]
[334011954,1722679837976,-500.0,0.00016712,2]
[334011955,1722679837986,-500.0,0.00016712,2]
[334011956,1722679837996,-310.89252893,0.00016712,2]
[334011957,1722679838005,-556.05264551,0.00016712,2]
[334011958,1722679838015,-500.0,0.00016712,2]
[334011959,1722679838026,-150.2891161,0.00016712,2]
[334011960,1722679838035,-500.0,0.00016712,2]
[334011961,1722679838046,-500.0,0.00016712,2]
[334011962,1722679838055,-500.0,0.00016712,2]
[334011963,1722679838065,-500.0,0.00016712,2]
[334011964,1722679838075,-500.0,0.00016712,2]
[334011965,1722679838084,-500.0,0.00016712,2]
[334011966,1722679838094,-500.0,0.00016712,2]
[334011967,1722679838104,-208.79988831,0.00016712,2]
[334011968,1722679838114,-500.0,0.00016712,2]
[334011969,1722679838123,-500.0,0.00016712,2]
[334011970,1722679838132,-169.62,0.00016712,2]
[334011971,1722679838142,-250.61369458,0.00016712,2]
[334011972,1722679838151,-500.0,0.00016712,2]
[334011973,1722679838161,-500.0,0.00016712,2]
[334011974,1722679838171,-500.0,0.00016712,2]
[334011976,1722679838180,-500.0,0.00016712,2]
[334011978,1722679838190,-500.0,0.00016712,2]
[334011980,1722679838199,-500.0,0.00016712,2]
[334011982,1722679838209,-500.0,0.00016712,2]
[334011983,1722679838218,-500.0,0.00016712,2]
[334011984,1722679838228,-500.0,0.00016712,2]
[334011985,1722679838237,-500.0,0.00016712,2]
[334011986,1722679838247,-500.0,0.00016712,2]
[334011987,1722679838256,-500.0,0.00016712,2]
[334011988,1722679838266,-500.0,0.00016712,2]
[334011989,1722679838276,-500.0,0.00016712,2]
[334011990,1722679838286,-500.0,0.00016712,2]
[334011991,1722679838296,-500.0,0.00016712,2]
[334011992,1722679838306,-500.0,0.00016712,2]
[334011993,1722679838315,-1050.57,0.00016712,2]
[334011994,1722679838325,-500.0,0.00016712,2]
[334011995,1722679838335,-500.0,0.00016712,2]
[334011996,1722679838344,-863.18,0.00016712,2]
[334011997,1722679838353,-500.0,0.00016712,2]
[334011998,1722679838363,-500.0,0.00016712,2]
[334011999,1722679838373,-500.0,0.00016712,2]
[334012000,1722679838383,-500.0,0.00016712,2]
[334012001,1722679838392,-500.0,0.00016712,2]
[334012002,1722679838402,-500.0,0.00016712,2]
[334012003,1722679838411,-500.0,0.00016712,2]
[334012004,1722679838421,-500.0,0.00016712,2]
[334012005,1722679838430,-500.0,0.00016712,2]
[334012006,1722679838440,-500.0,0.00016712,2]
[334012007,1722679838450,-500.0,0.00016712,2]
[334012008,1722679838459,-539.35,0.00016712,2]
[334012009,1722679838469,-500.0,0.00016712,2]
[334012010,1722679838479,-500.0,0.00016712,2]
[334012011,1722679838489,-500.0,0.00016712,2]
[334012012,1722679838499,-500.0,0.00016712,2]
[334012013,1722679838509,-500.0,0.00016712,2]
[334012014,1722679838519,-500.0,0.00016712,2]
[334012015,1722679838529,-500.0,0.00016712,2]
[334012016,1722679838539,-500.0,0.00016712,2]
[334012017,1722679838549,-500.0,0.00016712,2]
[334012018,1722679838559,-500.0,0.00016712,2]
[334012019,1722679838569,-500.0,0.00016712,2]
[334012020,1722679838579,-500.0,0.00016712,2]
[334012021,1722679838589,-500.0,0.00016712,2]
[334012022,1722679838599,-500.0,0.00016712,2]
[334012023,1722679838609,-700.34,0.00016712,2]
[334012024,1722679838619,-500.0,0.00016712,2]
[334012025,1722679838628,-500.0,0.00016712,2]
[334012026,1722679838638,-448.34980432,0.00016712,2]
[334012027,1722679838648,-500.0,0.00016712,2]
[334012028,1722679838659,-172.53493655,0.00016712,2]
[334012029,1722679838669,-500.0,0.00016712,2]
[334012030,1722679838679,-592.7,0.00016712,2]
[334012031,1722679838689,-500.0,0.00016712,2]
[334012032,1722679838699,-500.0,0.00016712,2]
[334012033,1722679838708,-500.0,0.00016712,2]
[334012034,1722679838718,-500.0,0.00016712,2]
[334012035,1722679838728,-542.41,0.00016712,2]
[334012036,1722679838738,-20540.63,0.00016712,2]
[334012037,1722679838748,-2917.87,0.00016712,2]
[334012038,1722679838758,-500.0,0.00016712,2]
[334012039,1722679838768,-551.5,0.00016712,2]
[334012040,1722679838778,-500.0,0.00016712,2]
[334012041,1722679838788,-500.0,0.00016712,2]
[334012042,1722679838798,-500.0,0.00016712,2]
[334012043,1722679838808,-2156.49,0.00016712,2]
[334012044,1722679838821,-763.4,0.00016712,2]
[334012045,1722679838831,-500.0,0.00016712,2]
[334012046,1722679838840,-605.34,0.00016712,2]
[334012047,1722679838850,-500.0,0.00016712,2]
[334012048,1722679838861,-2025.66,0.00016712,2]
[334012049,1722679838870,-3156.21,0.00016712,2]
[334012050,1722679838880,-533.71,0.00016712,2]
[334012051,1722679838890,-500.0,0.00016712,2]
[334012052,1722679838902,-500.0,0.00016712,2]
[334012053,1722679838912,-500.0,0.00016712,2]
[334012054,1722679838922,-985.87,0.00016712,2]
[334012055,1722679838932,-1174.52,0.00016712,2]
[334012056,1722679838941,-539.0,0.00016712,2]
[334012057,1722679838951,-500.0,0.00016712,2]
[334012058,1722679838961,-500.0,0.00016712,2]
[334012059,1722679838972,-500.0,0.00016712,2]
[334012060,1722679838983,-1586.69,0.00016712,2]
[334012061,1722679838993,-500.0,0.00016712,2]
[334012062,1722679839003,-830.37,0.00016712,2]
[334012063,1722679839012,-500.0,0.00016712,2]
[334012064,1722679839023,-500.0,0.00016712,2]
[334012065,1722679839033,-500.0,0.00016712,2]
[334012066,1722679839043,-500.0,0.00016712,2]
[334012067,1722679839053,-500.0,0.00016712,2]
[334012068,1722679839063,-6184.42,0.00016712,2]
[334012069,1722679839072,-500.0,0.00016712,2]
[334012070,1722679839082,-715.08,0.00016712,2]
[334012071,1722679839091,-2939.45,0.00016712,2]
[334012072,1722679839101,-500.0,0.00016712,2]
[334012073,1722679839111,-2824.94,0.00016712,2]
[334012074,1722679839121,-500.0,0.00016712,2]
[334012075,1722679839130,-728.72,0.00016712,2]
[334012076,1722679839140,-1733.44,0.00016712,2]
[334012077,1722679839150,-500.0,0.00016712,2]
[334012078,1722679839159,-612.74,0.00016712,2]
[334012079,1722679839169,-500.0,0.00016712,2]
[334012080,1722679839179,-500.0,0.00016712,2]
[334012081,1722679839189,-1033.05,0.00016712,2]
[334012082,1722679839198,-2726.97,0.00016712,2]
[334012083,1722679839208,-500.0,0.00016712,2]
[334012084,1722679839218,-500.0,0.00016712,2]
[334012085,1722679839227,-674.25,0.00016712,2]
[334012086,1722679839237,-595.38922987,0.00016712,2]
[334012087,1722679839246,-591.7,0.00016712,2]
[334012088,1722679839256,-500.0,0.00016712,2]
[334012089,1722679839265,-500.0,0.00016712,2]
[334012090,1722679839275,-500.0,0.00016712,2]
[334012091,1722679839284,-797.47,0.00016712,2]
[334012092,1722679839294,-2712.22,0.00016712,2]
[334012093,1722679839303,-771.83,0.00016712,2]
[334012094,1722679839313,-500.0,0.00016712,2]
[334012095,1722679839322,-779.95,0.00016712,2]
[334012096,1722679839331,-1649.43,0.00016712,2]
[334012097,1722679839341,-500.0,0.00016712,2]
[334012098,1722679839351,-827.87,0.00016712,2]
[334012099,1722679839360,-500.0,0.00016712,2]
[334012100,1722679839369,-500.0,0.00016712,2]
[334012101,1722679839379,-694.73,0.00016712,2]
[334012102,1722679839388,-500.0,0.00016712,2]
[334012103,1722679839398,-1327.35,0.00016712,2]
[334012104,1722679839408,-500.0,0.00016712,2]
[334012105,1722679839417,-500.0,0.00016712,2]
[334012106,1722679839427,-1575.91,0.00016712,2]
[334012107,1722679839439,-550.59,0.00016712,2]
[334012108,1722679839449,-1401.71,0.00016712,2]
[334012109,1722679839459,-500.0,0.00016712,2]
[334012110,1722679839469,-500.0,0.00016712,2]
[334012111,1722679839479,-813.6,0.00016712,2]
[334012112,1722679839489,-695.59,0.00016712,2]
[334012113,1722679839499,-500.0,0.00016712,2]
[334012114,1722679839509,-500.0,0.00016712,2]
[334012115,1722679839519,-500.0,0.00016712,2]
[334012116,1722679839529,-1465.19,0.00016712,2]
[334012117,1722679839539,-500.0,0.00016712,2]
[334012118,1722679839549,-500.0,0.00016712,2]
[334012119,1722679839559,-946.14,0.00016712,2]
[334012120,1722679839568,-500.0,0.00016712,2]
[334012121,1722679839578,-500.0,0.00016712,2]
[334012122,1722679839587,-500.0,0.00016712,2]
[334012123,1722679839597,-500.0,0.00016712,2]
[334012124,1722679839607,-500.0,0.00016712,2]
[334012125,1722679839617,-600.86,0.00016712,2]
[334012126,1722679839627,-500.0,0.00016712,2]
[334012127,1722679839636,-500.0,0.00016712,2]
[334012128,1722679839646,-578.27,0.00016712,2]
[334012129,1722679839656,-500.0,0.00016712,2]
[334012130,1722679839667,-500.0,0.00016712,2]
[334012131,1722679839676,-500.0,0.00016712,2]
[334012133,1722679839686,-979.53,0.00016712,2]
[334012134,1722679839696,-839.29,0.00016712,2]
[334012135,1722679839705,-1182.76,0.00016712,2]
[334012136,1722679839715,-500.0,0.00016712,2]
[334012137,1722679839726,-1041.82,0.00016712,2]
[334012138,1722679839736,-500.0,0.00016712,2]
[334012139,1722679839745,-500.0,0.00016712,2]
[334012140,1722679839755,-531.92415387,0.00016712,2]
[334012141,1722679839764,-587.18,0.00016712,2]
[334012142,1722679839774,-505.01,0.00016712,2]
[334012143,1722679839783,-548.04,0.00016712,2]
[334012144,1722679839792,-538.24,0.00016712,2]
[334012145,1722679839802,-2230.61,0.00016712,2]
[334012146,1722679839811,-500.0,0.00016712,2]
[334012147,1722679839826,-500.0,0.00016712,2]
[334012148,1722679839836,-500.0,0.00016712,2]
[334012150,1722679839845,-965.02,0.00016712,2]
[334012152,1722679839854,-500.0,0.00016712,2]
[334012153,1722679839865,-500.0,0.00016712,2]
[334012155,1722679839875,-1406.26,0.00016712,2]
[334012156,1722679839884,-932.3,0.00016712,2]
[334012157,1722679839895,-500.0,0.00016712,2]
[334012158,1722679839904,-500.0,0.00016712,2]
[334012159,1722679839913,-996.2,0.00016712,2]
[334012160,1722679839923,-1149.12,0.00016712,2]
[334012161,1722679839932,-500.0,0.00016712,2]
[334012162,1722679839942,-556.75,0.00016712,2]
[334012163,1722679839951,-500.0,0.00016712,2]
[334012164,1722679839960,-500.0,0.00016712,2]
[334012165,1722679839970,-500.0,0.00016712,2]
[334012166,1722679840043,-500.0,0.00016712,2]
[334012167,1722679840054,-682.35,0.00016712,2]
[334012168,1722679840064,-1039.26,0.00016712,2]
[334012169,1722679840074,-500.0,0.00016712,2]
[334012170,1722679840083,-500.0,0.00016712,2]
[334012171,1722679840092,-580.88702307,0.00016712,2]
[334012172,1722679840102,-670.1,0.00016712,2]
[334012173,1722679840113,-1099.2,0.00016712,2]
[334012174,1722679840122,-500.0,0.00016712,2]
[334012175,1722679840132,-500.0,0.00016712,2]
[334012176,1722679840141,-1762.59,0.00016712,2]
[334012177,1722679840150,-500.0,0.00016712,2]
[334012178,1722679840160,-1538.41,0.00016712,2]
[334012179,1722679840170,-508.97,0.00016712,2]
[334012180,1722679840179,-500.0,0.00016712,2]
[334012181,1722679840188,-524.29,0.00016712,2]
[334012182,1722679840197,-500.0,0.00016712,2]
[334012183,1722679840207,-509.71,0.00016712,2]
[334012184,1722679840216,-500.0,0.00016712,2]
[334012185,1722679840225,-509.30344785,0.00016712,2]
[334012186,1722679840234,-2869.52,0.00016712,2]
[334012187,1722679840245,-500.0,0.00016712,2]
[334012188,1722679840254,-962.43,0.00016712,2]
[334012189,1722679840263,-500.0,0.00016712,2]
[334012190,1722679840273,-500.0,0.00016712,2]
[334012191,1722679840285,-845.82,0.00016712,2]
[334012192,1722679840294,-799.98,0.00016712,2]
[334012193,1722679840304,-500.0,0.00016712,2]
[334012194,1722679840312,-419.79145839,0.00016712,2]
[334012195,1722679840322,-990.59,0.00016712,2]
[334012196,1722679840332,-500.0,0.00016712,2]
[334012197,1722679840343,-500.0,0.00016712,2]
[334012198,1722679840353,-946.75,0.00016712,2]
[334012199,1722679840365,-722.18,0.00016712,2]
[334012200,1722679840374,-3094.92,0.00016712,2]
[334012201,1722679840383,-1648.87,0.00016712,2]
[334012202,1722679840392,-500.0,0.00016712,2]
[334012203,1722679840403,-500.0,0.00016712,2]
[334012204,1722679840413,-546.6,0.00016712,2]
[334012205,1722679840422,-89.16717208,0.00016712,2]
[334012223,1722679840729,-560.23282792,0.00016712,2]
[334012225,1722679840740,-756.12,0.00016712,2]
[334012227,1722679840750,-131.35212441,0.00016712,2]
[334012229,1722679840762,-417.92787559,0.00016712,2]
[334012231,1722679840773,-1003.26022154,0.00016712,2]
[334012233,1722679840785,-750.26546194,0.00016712,2]
[334012235,1722679840796,-1266.60175907,0.00016712,2]
[334012316,1722679841625,-608.3,0.00016438,2]
[334012318,1722679841636,-1756.62255745,0.00016712,2]
[334012320,1722679841645,-262.89477098,0.00016712,2]
[334012322,1722679841657,-237.10522902,0.00016712,2]
[334012324,1722679841668,-18.43222803,0.00016712,2]
[334012327,1722679841683,-1720.82777197,0.00016712,2]